bitfinex/quotes_SOLUSD_20251118
["timestamp","ask_amount","ask_price","bid_price","bid_amount"]
[1763437024998,8.13898724,133.82,133.76,7.42898724]
[1763437025208,18.12096,133.79,133.69,10.02882769]
[1763437025505,18.12096,133.78,133.75,7.42898724]
[1763437025682,18.12096,133.78,133.76,7.42898724]
[1763437025879,0.71,133.77,133.72,9.78882769]
[1763437026088,7.42898724,133.76,133.64,0.24]
[1763437026397,18.12096,133.73,133.56,47.83690896]
[1763437026593,18.12096,133.73,133.69,7.42898724]
[1763437026802,18.12096,133.73,133.71,7.42898724]
[1763437026984,18.12096,133.73,133.72,7.42898724]
[1763437027180,0.71,133.73,133.72,7.42898724]
[1763437027381,0.71,133.73,133.65,7.42898724]
[1763437027382,0.71,133.73,133.66,9.78882769]
[1763437027698,0.71,133.73,133.67,7.42898724]
[1763437027699,26.25994724,133.73,133.67,7.42898724]
[1763437027900,26.25994724,133.73,133.57,0.24]
[1763437028102,0.71,133.72,133.68,7.42898724]
[1763437028276,0.71,133.72,133.63,9.78882769]
[1763437028277,0.71,133.76,133.71,7.42898724]
[1763437028482,0.71,133.76,133.75,7.42898724]
[1763437028699,0.71,133.76,133.66,10.02882769]
[1763437028886,0.71,133.76,133.75,11.37743427]
[1763437029490,0.71,133.76,133.74,11.37743427]
[1763437029998,0.71,133.76,133.75,11.37743427]
[1763437030208,37.28862439,133.89,133.75,11.37743427]
[1763437030209,0.71,133.79,133.75,11.37743427]
[1763437030413,0.71,133.79,133.78,11.37743427]
[1763437030590,0.71,133.82,133.78,11.37743427]
[1763437030901,0.1,133.9,133.78,11.37743427]
[1763437030902,0.71,133.89,133.81,11.37743427]
[1763437031085,0.71,133.89,133.87,11.37743427]
[1763437031285,0.71,133.89,133.81,9.78882769]
[1763437031475,0.71,133.89,133.87,11.37743427]
[1763437031679,0.71,133.89,133.88,11.37743427]
[1763437031893,0.1,133.9,133.81,10.02882769]
[1763437032081,0.1,133.9,133.89,11.37743427]
[1763437032280,0.1,133.9,133.85,11.37743427]
[1763437032281,0.7,133.89,133.85,11.37743427]
[1763437032503,0.7,133.89,133.86,11.37743427]
[1763437033191,0.7,133.89,133.87,11.37743427]
[1763437033504,0.1,133.9,133.88,11.37743427]
[1763437033687,0.1,133.9,133.89,11.37743427]
[1763437034286,0.8,133.9,133.89,11.37743427]
[1763437034902,0.1,133.9,133.89,11.37743427]
[1763437035319,0.1,133.9,133.89,32.54369623]
[1763437035616,1.93593088,133.94,133.9,9.78882769]
[1763437035932,0.7,133.93,133.83,18.12096]
[1763437036082,18.82096,133.93,133.9,11.37743427]
[1763437036410,18.12096,133.93,133.92,11.37743427]
[1763437036906,18.12096,133.93,133.8,29.49839427]
[1763437036907,0.66,133.93,133.9,11.37743427]
[1763437037202,18.78096,133.92,133.9,11.37743427]
[1763437037432,18.12096,133.9,133.78,0.24]
[1763437037599,18.78096,133.91,133.86,11.37743427]
[1763437037799,18.78096,133.91,133.8,11.37743427]
[1763437037800,12.03743427,133.9,133.8,11.37743427]
[1763437038006,0.66,133.9,133.85,11.37743427]
[1763437038202,0.66,133.89,133.85,11.37743427]
[1763437038402,0.66,133.89,133.86,11.37743427]
[1763437038600,0.66,133.89,133.76,0.24]
[1763437038813,0.66,133.89,133.85,11.37743427]
[1763437039025,18.78096,133.93,133.88,11.37743427]
[1763437039190,0.66,133.93,133.84,9.78882769]
[1763437039392,0.66,133.92,133.82,10.02882769]
[1763437039611,18.12096,133.89,133.81,9.78882769]
[1763437039810,18.12096,133.89,133.86,11.37743427]
[1763437040003,0.66,133.9,133.82,0.24]
[1763437040204,0.66,133.9,133.87,11.37743427]
[1763437040419,0.66,133.93,133.89,11.37743427]
[1763437040627,0.66,133.93,133.82,0.24]
[1763437040628,0.66,133.92,133.87,11.37743427]
[1763437040799,0.66,133.92,133.85,11.37743427]
[1763437040800,18.12096,133.88,133.85,11.37743427]
[1763437040998,0.66,133.87,133.78,0.24]
[1763437041197,0.66,133.87,133.72,34.30776042]
[1763437041198,0.66,133.87,133.82,11.37743427]
[1763437041515,0.66,133.87,133.7,11.37743427]
[1763437041516,18.12096,133.83,133.76,0.24]
[1763437041720,18.12096,133.83,133.82,11.37743427]
[1763437041924,18.12096,133.83,133.74,0.24]
[1763437041925,0.66,133.83,133.74,0.24]
[1763437042107,18.78096,133.83,133.8,11.37743427]
[1763437042293,18.78096,133.83,133.81,11.37743427]
[1763437042623,2.0,133.92,133.71,9.78882769]
[1763437042624,18.78096,133.85,133.76,10.02882769]
[1763437042824,18.78096,133.85,133.82,11.37743427]
[1763437043002,18.78096,133.84,133.82,11.37743427]
[1763437043206,18.78096,133.84,133.81,11.37743427]
[1763437043403,18.12096,133.83,133.8,11.37743427]
[1763437043608,18.12096,133.83,133.81,11.37743427]
[1763437043893,0.66,133.83,133.81,11.37743427]
[1763437044088,18.12096,133.88,133.71,0.74788721]
[1763437044089,0.66,133.82,133.71,0.74788721]
[1763437044297,0.66,133.82,133.72,0.24]
[1763437044515,0.66,133.82,133.78,11.37743427]
[1763437044705,18.12096,133.81,133.79,11.37743427]
[1763437044916,0.66,133.85,133.8,11.37743427]
[1763437045126,0.66,133.89,133.84,11.37743427]
[1763437045324,11.37743427,133.89,133.83,11.37743427]
[1763437045498,18.12096,133.85,133.83,11.37743427]
[1763437045698,18.12096,133.85,133.82,11.37743427]
[1763437046020,18.12096,133.85,133.78,10.02882769]
[1763437046021,0.66,133.84,133.8,11.37743427]
[1763437046201,18.12096,133.82,133.74,0.24]
[1763437046398,18.12096,133.82,133.8,11.37743427]
[1763437046628,18.12096,133.87,133.81,11.37743427]
[1763437046930,11.37743427,133.91,133.85,11.37743427]
[1763437047126,18.12096,133.88,133.85,11.37743427]
[1763437047432,0.66,133.9,133.85,11.37743427]
[1763437047608,18.78096,133.9,133.84,11.37743427]
[1763437047801,18.12096,133.86,133.84,11.37743427]
[1763437048015,12.03743427,133.89,133.78,0.24]
[1763437048218,12.03743427,133.89,133.71,0.74788721]
[1763437048219,18.12096,133.82,133.7,11.37743427]
[1763437048420,18.12096,133.8,133.73,0.24]
[1763437048732,29.49839427,133.8,133.73,0.24]
[1763437049025,29.49839427,133.8,133.75,11.37743427]
[1763437049331,0.66,133.84,133.78,11.37743427]
[1763437049636,12.03743427,133.84,133.78,11.37743427]
[1763437050226,11.37743427,133.81,133.75,11.37743427]
[1763437050526,18.12096,133.77,133.73,11.37743427]
[1763437050915,18.12096,133.77,133.74,11.37743427]
[1763437051097,18.12096,133.77,133.71,9.78882769]
[1763437051098,18.12096,133.77,133.73,11.37743427]
[1763437051300,12.03743427,133.8,133.74,11.37743427]
[1763437051595,0.66,133.83,133.74,9.78882769]
[1763437051798,0.66,133.83,133.78,11.37743427]
[1763437052025,11.37743427,133.82,133.77,11.37743427]
[1763437052231,12.03743427,133.83,133.78,11.37743427]
[1763437052436,12.03743427,133.83,133.75,9.78882769]
[1763437052650,13.37743427,133.9,133.7,9.78882769]
[1763437052651,11.37743427,133.76,133.7,9.78882769]
[1763437052935,11.37743427,133.76,133.71,11.37743427]
[1763437053130,29.49839427,133.77,133.72,11.37743427]
[1763437053330,18.12096,133.77,133.73,11.37743427]
[1763437053533,29.49839427,133.77,133.71,9.78882769]
[1763437053731,29.49839427,133.77,133.69,0.24]
[1763437053925,30.15839427,133.77,133.72,11.37743427]
[1763437054243,18.12096,133.77,133.73,11.37743427]
[1763437054609,9.2051608,133.89,133.73,11.37743427]
[1763437054610,0.66,133.84,133.77,9.78882769]
[1763437054810,12.03743427,133.84,133.75,0.24]
[1763437055032,18.12096,133.82,133.79,11.37743427]
[1763437055232,18.12096,133.82,133.76,0.24]
[1763437055233,1.93593088,133.94,133.76,0.24]
[1763437055444,1.93593088,133.94,133.71,26.58938424]
[1763437055445,11.37743427,133.86,133.8,11.37743427]
[1763437055744,11.37743427,133.86,133.77,0.24]
[1763437055921,0.66,133.87,133.81,11.37743427]
[1763437056126,11.37743427,133.86,133.81,11.37743427]
[1763437056316,11.37743427,133.85,133.79,11.37743427]
[1763437056517,11.37743427,133.84,133.79,11.37743427]
[1763437056731,18.12096,133.84,133.79,11.37743427]
[1763437057112,0.66,133.84,133.79,11.37743427]
[1763437057313,0.66,133.83,133.75,0.24]
[1763437057513,29.49839427,133.79,133.71,0.24]
[1763437057739,0.66,133.83,133.78,11.37743427]
[1763437057941,18.12096,133.82,133.79,11.37743427]
[1763437058125,18.12096,133.82,133.76,9.78882769]
[1763437058316,30.15839427,133.82,133.77,11.37743427]
[1763437058661,18.78096,133.82,133.77,11.37743427]
[1763437058822,18.12096,133.82,133.78,11.37743427]
[1763437059346,12.03743427,133.81,133.76,11.37743427]
[1763437059857,11.37743427,133.82,133.76,11.37743427]
[1763437060151,11.37743427,133.83,133.75,9.78882769]
[1763437060449,12.03743427,133.83,133.78,11.37743427]
[1763437060736,0.66,133.82,133.77,11.37743427]
[1763437060919,12.03743427,133.82,133.76,11.37743427]
[1763437061122,11.37743427,133.81,133.73,9.78882769]
[1763437061322,12.03743427,133.81,133.75,11.37743427]
[1763437061538,12.03743427,133.81,133.76,11.37743427]
[1763437061930,0.68,133.81,133.76,11.37743427]
[1763437062245,18.12096,133.82,133.78,11.37743427]
[1763437062751,0.68,133.81,133.77,11.37743427]
[1763437063345,12.05743427,133.84,133.79,11.37743427]
[1763437063546,29.49839427,133.85,133.8,11.37743427]
[1763437063938,30.17839427,133.85,133.79,9.78882769]
[1763437064137,30.17839427,133.85,133.8,11.37743427]
[1763437064443,12.05743427,133.84,133.79,9.78882769]
[1763437064614,0.68,133.84,133.79,21.16626196]
[1763437064811,0.66,133.84,133.79,27.21903527]
[1763437065027,29.49839427,133.85,133.8,17.43020758]
[1763437065345,11.37743427,133.87,133.82,6.05277331]
[1763437065928,11.37743427,133.87,133.83,9.78882769]
[1763437066132,1.93593088,133.94,133.83,9.78882769]
[1763437066133,1.93593088,133.94,133.86,21.16626196]
[1763437066368,1.93593088,133.94,133.89,11.37743427]
[1763437066558,1.93593088,133.94,133.9,6.05277331]
[1763437066742,1.93593088,133.94,133.89,6.05277331]
[1763437066948,1.93593088,133.94,133.9,17.43020758]
[1763437067126,1.93593088,133.94,133.91,17.43020758]
[1763437067323,1.93593088,133.94,133.93,9.78882769]
[1763437067543,1.93593088,133.94,133.92,8.46842424]
[1763437067751,1.93593088,133.94,133.93,6.20725783]
[1763437067945,1.93593088,133.94,133.91,6.20725783]
[1763437067946,13.31336515,133.94,133.91,6.20725783]
[1763437068143,13.31336515,133.94,133.9,6.20725783]
[1763437068144,12.05743427,133.93,133.9,6.20725783]
[1763437068457,12.05743427,133.93,133.87,6.20725783]
[1763437068458,29.49839427,133.91,133.87,6.20725783]
[1763437068631,11.37743427,133.89,133.86,6.20725783]
[1763437068835,11.37743427,133.87,133.85,6.20725783]
[1763437069064,11.37743427,133.87,133.83,8.46842424]
[1763437069065,0.68,133.9,133.83,6.20725783]
[1763437069223,18.12096,133.88,133.85,6.20725783]
[1763437069429,0.68,133.88,133.85,6.20725783]
[1763437069659,11.37743427,133.89,133.85,6.20725783]
[1763437069827,12.05743427,133.89,133.85,6.20725783]
[1763437070024,12.05743427,133.88,133.84,6.20725783]
[1763437070339,12.05743427,133.87,133.84,6.20725783]
[1763437070539,11.37743427,133.85,133.82,6.20725783]
[1763437070854,29.49839427,133.83,133.79,6.20725783]
[1763437071033,18.12096,133.83,133.8,6.20725783]
[1763437071224,0.68,133.82,133.79,6.20725783]
[1763437071454,0.68,133.82,133.8,6.20725783]
[1763437071671,0.68,133.84,133.8,6.20725783]
[1763437071966,0.68,133.86,133.8,6.20725783]
[1763437072261,11.37743427,133.82,133.8,6.20725783]
[1763437072438,11.37743427,133.82,133.79,6.20725783]
[1763437072637,12.05743427,133.81,133.78,6.20725783]
[1763437072858,11.37743427,133.8,133.78,6.20725783]
[1763437073056,0.68,133.8,133.77,6.20725783]
[1763437073260,0.68,133.79,133.78,6.20725783]
[1763437073441,29.49839427,133.8,133.77,6.20725783]
[1763437073626,18.12096,133.8,133.78,6.20725783]
[1763437073959,18.12096,133.8,133.79,6.24973743]
[1763437074162,0.68,133.82,133.78,8.46842424]
[1763437074347,0.68,133.82,133.8,6.25051786]
[1763437074537,0.68,133.82,133.78,8.46842424]
[1763437074538,0.68,133.82,133.81,6.25051786]
[1763437074741,18.12096,133.83,133.8,8.46842424]
[1763437074947,0.68,133.9,133.83,9.78882769]
[1763437075145,0.68,133.9,133.87,6.24320656]
[1763437075348,0.68,133.9,133.88,6.24320656]
[1763437075663,0.68,133.93,133.88,19.70170969]
[1763437075962,0.68,133.92,133.9,8.32427542]
[1763437076169,18.80096,133.92,133.9,8.32427542]
[1763437076333,18.80096,133.92,133.89,11.37743427]
[1763437076334,18.80096,133.92,133.91,6.23341758]
[1763437076530,18.80096,133.92,133.9,8.32427542]
[1763437076769,18.80096,133.92,133.91,6.23320314]
[1763437076933,18.80096,133.92,133.91,6.23318859]
[1763437077543,2.61593088,133.94,133.9,19.70170969]
[1763437077848,2.61593088,133.94,133.92,6.2299452]
[1763437078052,1.93593088,133.94,133.93,6.2299452]
[1763437078457,20.73689088,133.94,133.93,6.2299452]
[1763437079191,1.93593088,133.94,133.92,8.32427542]
[1763437079463,0.68,133.93,133.91,8.32427542]
[1763437079633,0.68,133.93,133.92,6.22661928]
[1763437079832,1.93593088,133.94,133.92,6.22661928]
[1763437080050,1.93593088,133.94,133.93,19.70170969]
[1763437080261,1.67593088,133.94,133.93,33.65267509]
[1763437080468,0.1,133.98,133.93,33.65267509]
[1763437080469,0.1,133.98,133.94,9.78882769]
[1763437080743,0.1,133.98,133.97,21.16626196]
[1763437081256,0.1,134.04,133.98,9.78882769]
[1763437081464,0.1,134.04,134.03,6.19882155]
[1763437081971,0.1,134.04,134.03,29.43135736]
[1763437082147,0.68,134.12,134.03,29.4069758]
[1763437082350,11.37743427,134.19,134.11,11.37743427]
[1763437082542,0.68,134.18,134.14,11.37743427]
[1763437083075,11.37743427,134.22,134.14,6.18047954]
[1763437083244,11.37743427,134.22,134.12,9.78882769]
[1763437083245,0.68,134.17,134.15,11.37743427]
[1763437083445,0.68,134.22,134.16,11.37743427]
[1763437083762,11.37743427,134.21,134.12,9.78882769]
[1763437083948,0.68,134.22,134.15,11.37743427]
[1763437084145,0.68,134.22,134.09,8.24071384]
[1763437084146,0.68,134.21,134.08,9.78882769]
[1763437084354,11.37743427,134.17,134.08,9.78882769]
[1763437084574,11.37743427,134.17,134.04,8.24071384]
[1763437084575,18.12096,134.18,134.05,9.78882769]
[1763437084743,11.4555909,134.21,134.07,11.37743427]
[1763437084744,18.12096,134.17,134.07,11.37743427]
[1763437084940,18.12096,134.17,134.05,9.78882769]
[1763437084941,11.37743427,134.16,134.11,11.37743427]
[1763437085145,11.37743427,134.16,134.06,6.18047954]
[1763437085146,1.93593088,134.23,134.15,11.37743427]
[1763437085377,1.93593088,134.23,134.19,11.37743427]
[1763437085378,0.68,134.22,134.19,11.37743427]
[1763437085575,1.93593088,134.23,134.16,9.78882769]
[1763437085761,0.68,134.22,134.13,9.78882769]
[1763437085946,11.37743427,134.2,134.11,9.78882769]
[1763437086146,18.12096,134.21,134.18,11.37743427]
[1763437086403,0.68,134.2,134.11,0.74565655]
[1763437086575,29.49839427,134.18,134.05,0.7459903]
[1763437087660,29.49839427,134.15,134.1,11.37743427]
[1763437087975,2.0,134.21,134.15,9.78882769]
[1763437087976,0.68,134.21,134.15,9.78882769]
[1763437088278,0.68,134.24,134.2,11.37743427]
[1763437088462,0.68,134.27,134.22,21.16626196]
[1763437088656,0.68,134.31,134.22,21.16626196]
[1763437088856,0.68,134.34,134.23,9.78882769]
[1763437089061,0.68,134.34,134.31,11.37743427]
[1763437089283,0.68,134.37,134.24,9.78882769]
[1763437089492,0.68,134.37,134.32,11.37743427]
[1763437089783,0.68,134.4,134.31,9.78882769]
[1763437090072,0.68,134.4,134.3,11.37743427]
[1763437090073,0.68,134.4,134.35,11.37743427]
[1763437090284,0.68,134.4,134.37,11.37743427]
[1763437090574,11.37743427,134.5,134.3,11.37743427]
[1763437090575,0.68,134.41,134.34,9.78882769]
[1763437090780,7.28016651,134.45,134.31,9.78882769]
[1763437090981,0.68,134.44,134.31,0.74454619]
[1763437091169,0.68,134.44,134.4,7.28016651]
[1763437091350,1.93593088,134.52,134.31,0.74454619]
[1763437091351,7.28016651,134.46,134.41,7.28016651]
[1763437091556,25.40112651,134.42,134.25,18.12096]
[1763437091761,0.68,134.41,134.37,7.28016651]
[1763437092060,7.28016651,134.38,134.21,6.18047954]
[1763437092272,18.12096,134.37,134.32,7.28016651]
[1763437092450,0.69,134.36,134.32,7.28016651]
[1763437092994,7.28016651,134.33,134.22,0.74504544]
[1763437093169,18.12096,134.34,134.26,7.28016651]
[1763437093354,18.12096,134.34,134.19,7.28016651]
[1763437093355,0.69,134.36,134.28,7.28016651]
[1763437093552,18.12096,134.34,134.23,0.74498994]
[1763437093770,0.69,134.35,134.19,7.28016651]
[1763437093771,0.69,134.35,134.19,8.02537852]
[1763437093980,18.12096,134.27,134.19,7.28016651]
[1763437094187,18.12096,134.29,134.24,7.28016651]
[1763437094485,18.81096,134.34,134.11,0.74565655]
[1763437094486,7.28016651,134.27,134.11,0.74565655]
[1763437094778,18.81096,134.28,134.11,0.74565655]
[1763437094979,7.28016651,134.25,134.2,7.28016651]
[1763437095173,0.69,134.27,134.19,7.28016651]
[1763437095483,0.69,134.3,134.26,7.28016651]
[1763437095686,18.12096,134.29,134.27,7.28016651]
[1763437095979,0.69,134.46,134.37,9.78882769]
[1763437096186,0.69,134.46,134.42,7.28016651]
[1763437096367,0.69,134.51,134.38,10.53298604]
[1763437096567,0.69,134.51,134.42,9.78882769]
[1763437096754,30.12426162,134.51,134.46,11.31330162]
[1763437096956,18.12096,134.48,134.39,9.78882769]
[1763437097175,18.12096,134.48,134.44,11.31330162]
[1763437097381,0.68,134.5,134.41,9.78882769]
[1763437097582,0.68,134.5,134.48,11.31330162]
[1763437097788,0.68,134.5,134.41,9.78882769]
[1763437097957,0.68,134.5,134.36,9.78882769]
[1763437097958,18.12096,134.48,134.36,9.78882769]
[1763437098162,18.12096,134.48,134.38,9.78882769]
[1763437098361,0.68,134.47,134.37,9.78882769]
[1763437098562,18.12096,134.46,134.43,11.31330162]
[1763437098780,1.93593088,134.52,134.46,9.78882769]
[1763437098980,1.93593088,134.52,134.51,11.31330162]
[1763437099177,1.93593088,134.52,134.46,10.53254329]
[1763437099378,2.61593088,134.52,134.49,11.31330162]
[1763437099789,0.68,134.51,134.36,0.74426912]
[1763437099993,11.31330162,134.5,134.43,11.31330162]
[1763437100200,18.12096,134.46,134.32,18.86545076]
[1763437100485,18.12096,134.46,134.4,11.31330162]
[1763437100704,0.68,134.45,134.3,9.78882769]
[1763437100997,0.68,134.45,134.4,11.31330162]
[1763437101185,18.12096,134.43,134.39,11.31330162]
[1763437101486,18.12096,134.41,134.37,11.31330162]
[1763437101986,0.68,134.4,134.28,9.78882769]
[1763437102172,9.78882769,134.51,134.27,18.12096]
[1763437102173,2.0,134.53,134.33,9.78882769]
[1763437102367,937.0,135.7,134.33,9.78882769]
[1763437102368,0.68,134.46,134.42,11.31330162]
[1763437102564,11.31330162,134.53,134.45,11.31330162]
[1763437102764,2.0,134.65,134.51,11.31330162]
[1763437102974,33.55992914,134.73,134.51,11.31330162]
[1763437102975,0.68,134.54,134.51,11.31330162]
[1763437103166,2.61593088,134.52,134.5,11.31330162]
[1763437103364,0.68,134.51,134.24,11.31330162]
[1763437103596,0.68,134.51,134.47,11.31330162]
[1763437103908,0.68,134.51,134.32,0.74449076]
[1763437103909,18.12096,134.47,134.33,9.78882769]
[1763437104109,18.12096,134.45,134.39,11.31330162]
[1763437104586,0.68,134.44,134.39,11.31330162]
[1763437104895,0.68,134.44,134.25,0.74487895]
[1763437104896,0.68,134.44,134.31,9.78882769]
[1763437105191,0.68,134.44,134.38,11.31330162]
[1763437105384,0.68,134.44,134.41,11.31330162]
[1763437105585,18.80096,134.44,134.4,11.31330162]
[1763437105773,18.80096,134.44,134.42,11.31330162]
[1763437105972,18.80096,134.44,134.34,0.74437993]
[1763437105973,0.68,134.48,134.43,11.31330162]
[1763437106169,0.68,134.48,134.4,11.31330162]
[1763437106369,18.12096,134.46,134.32,9.78882769]
[1763437106595,18.12096,134.46,134.44,11.31330162]
[1763437106799,0.68,134.48,134.45,11.31330162]
[1763437107009,0.68,134.48,134.39,9.78882769]
[1763437107301,0.68,134.48,134.46,11.31330162]
[1763437107795,0.68,134.48,134.45,11.31330162]
[1763437107978,0.68,134.48,134.46,11.31330162]
[1763437108178,0.68,134.48,134.45,11.31330162]
[1763437108368,18.12096,134.47,134.44,11.31330162]
[1763437108787,0.68,134.46,134.44,11.31330162]
[1763437108991,18.80096,134.46,134.36,9.78882769]
[1763437109296,18.80096,134.46,134.43,11.31330162]
[1763437109503,0.68,134.45,134.36,9.78882769]
[1763437109808,18.80096,134.45,134.41,11.31330162]
[1763437109972,18.80096,134.45,134.19,11.31330162]
[1763437109973,18.12096,134.43,134.39,11.31330162]
[1763437110182,1.93593088,134.52,134.37,9.78882769]
[1763437110392,0.68,134.45,134.43,11.31330162]
[1763437110574,0.68,134.45,134.36,9.78882769]
[1763437110774,18.12096,134.43,134.3,9.78882769]
[1763437111080,18.80096,134.45,134.41,11.31330162]
[1763437111276,18.80096,134.45,134.39,11.31330162]
[1763437111482,0.68,134.44,134.39,11.31330162]
[1763437112287,0.68,134.44,134.4,11.31330162]
[1763437112493,18.12096,134.42,134.4,11.31330162]
[1763437112734,9.78882769,134.5,134.32,0.74449076]
[1763437112735,1.93593088,134.52,134.41,11.31330162]
[1763437112888,0.68,134.46,134.45,11.31330162]
[1763437113189,0.68,134.46,134.44,11.31330162]
[1763437113394,0.68,134.46,134.43,11.31330162]
[1763437113705,0.68,134.46,134.38,9.78882769]
[1763437113706,0.68,134.46,134.42,11.31330162]
[1763437113904,18.12096,134.43,134.4,11.31330162]
[1763437114104,18.12096,134.43,134.34,9.78882769]
[1763437114105,18.12096,134.42,134.34,9.78882769]
[1763437114318,18.12096,134.42,134.38,11.31330162]
[1763437114319,0.68,134.42,134.38,11.31330162]
[1763437114519,0.68,134.42,134.22,37.73696842]
[1763437114520,18.12096,134.37,134.25,0.74487895]
[1763437114816,18.12096,134.39,134.33,11.31330162]
[1763437114992,18.12096,134.39,134.27,18.12096]
[1763437115187,0.68,134.38,134.34,11.31330162]
[1763437115386,0.68,134.38,134.27,18.12096]
[1763437115387,0.68,134.38,134.35,11.31330162]
[1763437115587,0.68,134.38,134.27,18.12096]
[1763437115588,0.68,134.38,134.36,11.31330162]
[1763437116027,18.12096,134.39,134.37,11.31330162]
[1763437116199,0.68,134.38,134.37,11.31330162]
[1763437116395,0.68,134.38,134.24,11.31330162]
[1763437116594,0.68,134.38,134.33,11.31330162]
[1763437116815,11.99330162,134.38,134.32,11.31330162]
[1763437117020,0.68,134.38,134.32,11.31330162]
[1763437117218,0.68,134.41,134.29,9.78882769]
[1763437117404,0.68,134.41,134.28,18.12096]
[1763437117723,0.68,134.41,134.36,11.31330162]
[1763437117724,18.12096,134.39,134.36,11.31330162]
[1763437117900,18.12096,134.39,134.34,11.31330162]
[1763437118095,18.12096,134.37,134.34,11.31330162]
[1763437118297,18.12096,134.37,134.28,9.78882769]
[1763437118298,0.68,134.38,134.36,11.31330162]
[1763437118505,0.68,134.38,134.35,11.31330162]
[1763437118705,0.68,134.38,134.36,11.31330162]
[1763437118938,9.78882769,134.47,134.3,9.78882769]
[1763437118939,9.78882769,134.47,134.37,11.31330162]
[1763437119107,0.68,134.49,134.45,11.31330162]
[1763437119423,0.68,134.49,134.42,9.78882769]
[1763437119812,0.68,134.49,134.45,11.31330162]
[1763437120219,0.68,134.49,134.44,11.31330162]
[1763437120620,0.68,134.49,134.45,11.31330162]
[1763437121009,0.68,134.49,134.44,11.31330162]
[1763437121229,18.12096,134.48,134.44,11.31330162]
[1763437121634,0.68,134.47,134.45,11.31330162]
[1763437121832,0.68,134.47,134.4,0.74404761]
[1763437122136,18.12096,134.46,134.43,11.31330162]
[1763437122316,0.69,134.49,134.45,11.31330162]
[1763437122630,0.69,134.48,134.44,11.31330162]
[1763437122935,12.00330162,134.48,134.42,11.31330162]
[1763437123104,11.31330162,134.44,134.38,11.31330162]
[1763437123304,0.69,134.47,134.38,11.31330162]
[1763437123504,0.69,134.47,134.3,18.12096]
[1763437123505,18.12096,134.43,134.4,11.31330162]
[1763437123702,0.69,134.42,134.4,11.31330162]
[1763437123953,0.69,134.42,134.39,11.31330162]
[1763437124117,0.69,134.42,134.36,9.78882769]
[1763437124313,18.81096,134.42,134.37,11.31330162]
[1763437124507,18.12096,134.42,134.38,11.31330162]
[1763437124706,18.81096,134.44,134.34,0.74437993]
[1763437125007,18.81096,134.44,134.4,7.27805907]
[1763437125313,18.12096,134.49,134.42,7.27805907]
[1763437125511,0.69,134.46,134.44,7.27805907]
[1763437125926,0.69,134.46,134.4,9.78882769]
[1763437126119,0.69,134.46,134.44,7.27805907]
[1763437126314,0.69,134.46,134.45,7.27805907]
[1763437126843,1.93593088,134.52,134.46,9.78882769]
[1763437127147,1.93593088,134.52,134.51,21.08874346]
[1763437128055,0.1,134.55,134.52,9.78882769]
[1763437128222,0.69,134.64,134.54,21.08874346]
[1763437128536,12.38320344,134.94,134.62,11.29991577]
[1763437128537,2.0,134.74,134.62,11.29991577]
[1763437128741,11.29991577,134.7,134.63,11.29991577]
[1763437128913,11.29991577,134.65,134.55,9.78882769]
[1763437129114,29.42087577,134.63,134.54,9.78882769]
[1763437129315,18.12096,134.63,134.5,6.92397396]
[1763437129527,11.78882769,134.69,134.49,18.12096]
[1763437129528,18.12096,134.6,134.51,9.78882769]
[1763437129730,11.29991577,134.59,134.51,9.78882769]
[1763437129933,11.29991577,134.59,134.47,6.92413983]
[1763437129934,11.98991577,134.59,134.48,9.78882769]
[1763437130242,18.12096,134.54,134.5,11.29991577]
[1763437130430,0.69,134.53,134.44,6.18047954]
[1763437130612,0.69,134.53,134.48,11.29991577]
[1763437130811,0.69,134.53,134.47,11.29991577]
[1763437131040,11.98991577,134.53,134.47,11.29991577]
[1763437131311,11.98991577,134.53,134.42,6.92441645]
[1763437131312,11.29991577,134.58,134.43,24.30143954]
[1763437131531,29.42087577,134.57,134.51,11.29991577]
[1763437131823,18.12096,134.57,134.48,9.78882769]
[1763437132158,0.69,134.58,134.51,15.96930723]
[1763437132313,0.69,134.58,134.52,6.18047954]
[1763437132515,0.69,134.58,134.56,11.29991577]